[Event "December 12 Early 2023"]
[Site "https://www.chess.com"]
[Date "2023.12.12"]
[Round "10"]
[White "Nikulina, Alena"]
[Black "Sarkar, Justin"]
[Result "1-0"]
[Board "134"]
[TimeControl "180+1"]
[WhiteFideId "4172051"]
[BlackFideId "2010011"]
[WhiteElo "2057"]
[BlackElo "2297"]
[WhiteTeam "RUS"]
[BlackTeam "USA"]
[WhiteClock "0:00:05"]
[BlackClock "0:00:00"]

1. e4 {[%clk 0:02:56]}  Nc6 {[%clk 0:02:50]} 2. d4 {[%clk 0:02:55]}  d5 {[%clk 0:02:46]} 3. e5 {[%clk 0:02:18]}  f6 {[%clk 0:02:45]} 4. exf6 {[%clk 0:02:16]}  exf6 {[%clk 0:02:44]} 5. Nf3 {[%clk 0:02:16]}  Bd6 {[%clk 0:02:33]} 6. Bd3 {[%clk 0:02:16]}  Nge7 {[%clk 0:02:31]} 7. c4 {[%clk 0:02:13]}  Bb4+ {[%clk 0:02:09]} 8. Nc3 {[%clk 0:02:11]}  Bg4 {[%clk 0:01:46]} 9. O-O {[%clk 0:02:02]}  O-O {[%clk 0:01:15]} 10. Be3 {[%clk 0:01:21]}  dxc4 {[%clk 0:01:06]} 11. Bxc4+ {[%clk 0:01:20]}  Kh8 {[%clk 0:01:06]} 12. a3 {[%clk 0:01:06]}  Bd6 {[%clk 0:00:56]} 13. h3 {[%clk 0:01:05]}  Bh5 {[%clk 0:00:46]} 14. g4 {[%clk 0:00:58]}  Bf7 {[%clk 0:00:40]} 15. Bd3 {[%clk 0:00:57]}  Nd5 {[%clk 0:00:36]} 16. Nh4 {[%clk 0:00:51]}  Nf4 {[%clk 0:00:23]} 17. Bxf4 {[%clk 0:00:44]}  Bxf4 {[%clk 0:00:22]} 18. Ne2 {[%clk 0:00:30]}  Bg5 {[%clk 0:00:09]} 19. Nf3 {[%clk 0:00:27]}  Bd5 {[%clk 0:00:07]} 20. Nxg5 {[%clk 0:00:20]}  fxg5 {[%clk 0:00:07]} 21. Bc2 {[%clk 0:00:18]}  Qf6 {[%clk 0:00:06]} 22. Qd3 {[%clk 0:00:15]}  g6 {[%clk 0:00:06]} 23. Ng3 {[%clk 0:00:15]}  Rae8 {[%clk 0:00:04]} 24. Nh5 {[%clk 0:00:08]}  Qf7 {[%clk 0:00:03]} 25. Ng3 {[%clk 0:00:08]}  Qg7 {[%clk 0:00:01]} 26. Qd2 {[%clk 0:00:07]}  Rf3 {[%clk 0:00:01]} 27. Rae1 {[%clk 0:00:06]}  Nxd4 {[%clk 0:00:01]} 28. Rxe8+ {[%clk 0:00:05]}  Bg8 {[%clk 0:00:00]} 29. Bd1 {[%clk 0:00:05]} 1-0

[Event "December 12 Early 2023"]
[Site "https://www.chess.com"]
[Date "2023.12.12"]
[Round "10"]
[White "Lohani, Sujana"]
[Black "Schut, Han"]
[Result "1-0"]
[Board "136"]
[TimeControl "180+1"]
[WhiteFideId "12311987"]
[BlackFideId "1005561"]
[WhiteElo "2013"]
[BlackElo "2271"]
[WhiteTeam "NEP"]
[BlackTeam "NED"]
[WhiteClock "0:01:04"]
[BlackClock "0:00:00"]

1. d4 {[%clk 0:03:00]}  Nf6 {[%clk 0:02:56]} 2. Bf4 {[%clk 0:03:00]}  d5 {[%clk 0:02:56]} 3. e3 {[%clk 0:03:00]}  e6 {[%clk 0:02:57]} 4. c3 {[%clk 0:03:00]}  Bd6 {[%clk 0:02:57]} 5. Bg3 {[%clk 0:03:00]}  b6 {[%clk 0:02:58]} 6. Bd3 {[%clk 0:03:00]}  Bb7 {[%clk 0:02:58]} 7. Nf3 {[%clk 0:03:00]}  Ne4 {[%clk 0:02:59]} 8. Nbd2 {[%clk 0:02:56]}  O-O {[%clk 0:02:57]} 9. Ne5 {[%clk 0:02:57]}  Nd7 {[%clk 0:02:56]} 10. f4 {[%clk 0:02:54]}  f6 {[%clk 0:02:53]} 11. Bxe4 {[%clk 0:02:49]}  fxe5 {[%clk 0:02:34]} 12. fxe5 {[%clk 0:02:38]}  dxe4 {[%clk 0:02:23]} 13. exd6 {[%clk 0:02:34]}  c5 {[%clk 0:02:14]} 14. Qg4 {[%clk 0:02:30]}  Rf6 {[%clk 0:01:30]} 15. O-O-O {[%clk 0:02:14]}  cxd4 {[%clk 0:01:26]} 16. exd4 {[%clk 0:02:03]}  e3 {[%clk 0:01:18]} 17. Nc4 {[%clk 0:02:01]}  Rg6 {[%clk 0:01:09]} 18. Qe2 {[%clk 0:02:00]}  b5 {[%clk 0:01:00]} 19. Nxe3 {[%clk 0:01:58]}  b4 {[%clk 0:01:01]} 20. c4 {[%clk 0:01:56]}  Qa5 {[%clk 0:00:53]} 21. b3 {[%clk 0:01:51]}  Rc8 {[%clk 0:00:36]} 22. Kb2 {[%clk 0:01:42]}  Qa3+ {[%clk 0:00:31]} 23. Ka1 {[%clk 0:01:40]}  a5 {[%clk 0:00:27]} 24. Qb2 {[%clk 0:01:26]}  Qxb2+ {[%clk 0:00:26]} 25. Kxb2 {[%clk 0:01:26]}  a4 {[%clk 0:00:27]} 26. d5 {[%clk 0:01:22]}  exd5 {[%clk 0:00:16]} 27. Nxd5 {[%clk 0:01:21]}  Bxd5 {[%clk 0:00:13]} 28. Rxd5 {[%clk 0:01:21]}  a3+ {[%clk 0:00:13]} 29. Kb1 {[%clk 0:01:16]}  Re8 {[%clk 0:00:13]} 30. c5 {[%clk 0:01:11]}  Re2 {[%clk 0:00:07]} 31. c6 {[%clk 0:01:11]}  Nb6 {[%clk 0:00:00]} 32. d7 {[%clk 0:01:04]} 1-0

[Event "December 12 Early 2023"]
[Site "https://www.chess.com"]
[Date "2023.12.12"]
[Round "10"]
[White "Skiadopoulos, Nikolaos"]
[Black "Petrukhina, Olga"]
[Result "0-1"]
[Board "137"]
[TimeControl "180+1"]
[WhiteFideId "4200772"]
[BlackFideId "13703935"]
[WhiteElo "1745"]
[BlackElo "2215"]
[WhiteTeam "GRE"]
[BlackTeam "KAZ"]
[WhiteClock "0:00:00"]
[BlackClock "0:00:22"]

1. e4 {[%clk 0:03:00]}  e6 {[%clk 0:02:59]} 2. d4 {[%clk 0:02:53]}  d5 {[%clk 0:02:59]} 3. e5 {[%clk 0:02:51]}  c5 {[%clk 0:02:58]} 4. c3 {[%clk 0:02:51]}  Nc6 {[%clk 0:02:57]} 5. Nf3 {[%clk 0:02:45]}  Bd7 {[%clk 0:02:55]} 6. dxc5 {[%clk 0:02:44]}  Bxc5 {[%clk 0:02:50]} 7. b4 {[%clk 0:02:44]}  Be7 {[%clk 0:02:27]} 8. b5 {[%clk 0:02:42]}  Na5 {[%clk 0:02:25]} 9. Bd3 {[%clk 0:02:41]}  Qc7 {[%clk 0:02:17]} 10. a4 {[%clk 0:02:25]}  Nc4 {[%clk 0:02:11]} 11. Qe2 {[%clk 0:02:21]}  Rc8 {[%clk 0:02:10]} 12. O-O {[%clk 0:02:13]}  Nh6 {[%clk 0:02:02]} 13. Bxh6 {[%clk 0:02:12]}  gxh6 {[%clk 0:02:03]} 14. Ra2 {[%clk 0:02:10]}  Rg8 {[%clk 0:01:49]} 15. Bxh7 {[%clk 0:02:00]}  Rg7 {[%clk 0:01:47]} 16. Bd3 {[%clk 0:01:57]}  a6 {[%clk 0:01:23]} 17. bxa6 {[%clk 0:01:51]}  bxa6 {[%clk 0:01:24]} 18. a5 {[%clk 0:01:37]}  Bb5 {[%clk 0:01:20]} 19. Na3 {[%clk 0:01:12]}  Nxa3 {[%clk 0:01:17]} 20. Rxa3 {[%clk 0:01:11]}  Bxa3 {[%clk 0:01:17]} 21. Bxb5+ {[%clk 0:01:03]}  axb5 {[%clk 0:01:18]} 22. Qxb5+ {[%clk 0:01:03]}  Qd7 {[%clk 0:01:06]} 23. Qb3 {[%clk 0:01:02]}  Bc5 {[%clk 0:01:02]} 24. Ra1 {[%clk 0:00:50]}  Qa7 {[%clk 0:00:54]} 25. Ra2 {[%clk 0:00:47]}  Rb8 {[%clk 0:00:51]} 26. Qa4+ {[%clk 0:00:42]}  Kf8 {[%clk 0:00:50]} 27. g3 {[%clk 0:00:39]}  Kg8 {[%clk 0:00:40]} 28. Qf4 {[%clk 0:00:34]}  Qa6 {[%clk 0:00:33]} 29. Nd2 {[%clk 0:00:18]}  Rb5 {[%clk 0:00:25]} 30. Qxh6 {[%clk 0:00:17]}  Rxa5 {[%clk 0:00:24]} 31. Rxa5 {[%clk 0:00:06]}  Qxa5 {[%clk 0:00:25]} 32. c4 {[%clk 0:00:06]}  Qa1+ {[%clk 0:00:22]} 33. Kg2 {[%clk 0:00:00]}  Qd4 {[%clk 0:00:22]} 0-1

[Event "December 12 Early 2023"]
[Site "https://www.chess.com"]
[Date "2023.12.12"]
[Round "10"]
[White "MasterofMasters2006"]
[Black "Reinecke, Katharina"]
[Result "1-0"]
[Board "138"]
[TimeControl "180+1"]
[BlackFideId "12929727"]
[WhiteElo "2061"]
[BlackElo "2021"]
[BlackTeam "GER"]
[WhiteClock "0:00:53"]
[BlackClock "0:00:15"]

1. d4 {[%clk 0:02:52]}  d5 {[%clk 0:02:58]} 2. c4 {[%clk 0:02:51]}  c6 {[%clk 0:02:58]} 3. Nc3 {[%clk 0:02:48]}  Nf6 {[%clk 0:02:57]} 4. Bg5 {[%clk 0:02:46]}  e6 {[%clk 0:02:56]} 5. e3 {[%clk 0:02:45]}  Be7 {[%clk 0:02:55]} 6. Nf3 {[%clk 0:02:45]}  O-O {[%clk 0:02:55]} 7. Qc2 {[%clk 0:02:44]}  Nbd7 {[%clk 0:02:50]} 8. Rc1 {[%clk 0:02:43]}  h6 {[%clk 0:02:45]} 9. Bh4 {[%clk 0:02:35]}  b6 {[%clk 0:02:38]} 10. Bd3 {[%clk 0:02:30]}  Bb7 {[%clk 0:02:36]} 11. O-O {[%clk 0:02:27]}  Rc8 {[%clk 0:02:31]} 12. cxd5 {[%clk 0:02:24]}  cxd5 {[%clk 0:02:29]} 13. Qe2 {[%clk 0:02:18]}  Ne4 {[%clk 0:02:22]} 14. Bxe7 {[%clk 0:02:09]}  Qxe7 {[%clk 0:02:22]} 15. Nb5 {[%clk 0:02:01]}  a6 {[%clk 0:02:11]} 16. Nc3 {[%clk 0:01:58]}  b5 {[%clk 0:02:10]} 17. Bxe4 {[%clk 0:01:49]}  dxe4 {[%clk 0:02:10]} 18. Nd2 {[%clk 0:01:50]}  Nf6 {[%clk 0:02:07]} 19. Nb3 {[%clk 0:01:45]}  Rc7 {[%clk 0:01:55]} 20. Nc5 {[%clk 0:01:39]}  Rfc8 {[%clk 0:01:54]} 21. b4 {[%clk 0:01:36]}  Qd6 {[%clk 0:01:34]} 22. a4 {[%clk 0:01:30]}  bxa4 {[%clk 0:01:18]} 23. N3xa4 {[%clk 0:01:31]}  Bd5 {[%clk 0:01:14]} 24. Qd2 {[%clk 0:01:15]}  Nd7 {[%clk 0:01:09]} 25. Nxd7 {[%clk 0:01:10]}  Qxd7 {[%clk 0:00:56]} 26. Nb6 {[%clk 0:01:06]}  Rxc1 {[%clk 0:00:49]} 27. Nxd7 {[%clk 0:01:06]}  Rxf1+ {[%clk 0:00:48]} 28. Kxf1 {[%clk 0:01:07]}  Bc4+ {[%clk 0:00:39]} 29. Kg1 {[%clk 0:01:01]}  Bb5 {[%clk 0:00:37]} 30. Nc5 {[%clk 0:01:01]}  g6 {[%clk 0:00:31]} 31. h3 {[%clk 0:01:01]}  Kg7 {[%clk 0:00:30]} 32. d5 {[%clk 0:00:56]}  exd5 {[%clk 0:00:23]} 33. Qxd5 {[%clk 0:00:54]}  Rc7 {[%clk 0:00:22]} 34. Qxe4 {[%clk 0:00:53]}  h5 {[%clk 0:00:15]} 35. Qe5+ {[%clk 0:00:53]} 1-0

[Event "December 12 Early 2023"]
[Site "https://www.chess.com"]
[Date "2023.12.12"]
[Round "11"]
[White "Sarana, Alexey"]
[Black "Le, Tuan Minh"]
[Result "0-1"]
[Board "2"]
[TimeControl "180+1"]
[WhiteFideId "24133795"]
[BlackFideId "12401153"]
[WhiteElo "3047"]
[BlackElo "3083"]
[WhiteTeam "SRB"]
[BlackTeam "VIE"]
[WhiteClock "0:00:06"]
[BlackClock "0:00:37"]

1. d4 {[%clk 0:03:00]}  Nf6 {[%clk 0:03:00]} 2. c4 {[%clk 0:03:01]}  e6 {[%clk 0:03:01]} 3. Nc3 {[%clk 0:03:02]}  d5 {[%clk 0:02:57]} 4. Bg5 {[%clk 0:03:01]}  Nbd7 {[%clk 0:02:44]} 5. cxd5 {[%clk 0:03:00]}  exd5 {[%clk 0:02:44]} 6. e3 {[%clk 0:03:00]}  Be7 {[%clk 0:02:43]} 7. Bd3 {[%clk 0:03:00]}  O-O {[%clk 0:02:43]} 8. Nf3 {[%clk 0:02:59]}  b6 {[%clk 0:02:40]} 9. O-O {[%clk 0:02:58]}  Bb7 {[%clk 0:02:41]} 10. Rc1 {[%clk 0:02:46]}  h6 {[%clk 0:02:37]} 11. Bf4 {[%clk 0:02:46]}  a6 {[%clk 0:02:34]} 12. h3 {[%clk 0:02:46]}  c5 {[%clk 0:02:32]} 13. dxc5 {[%clk 0:02:36]}  bxc5 {[%clk 0:02:32]} 14. Bf5 {[%clk 0:02:37]}  Re8 {[%clk 0:02:23]} 15. Ne5 {[%clk 0:02:30]}  Nxe5 {[%clk 0:02:08]} 16. Bxe5 {[%clk 0:02:31]}  Bd6 {[%clk 0:02:08]} 17. Bxd6 {[%clk 0:02:18]}  Qxd6 {[%clk 0:02:09]} 18. Na4 {[%clk 0:02:18]}  c4 {[%clk 0:01:36]} 19. b3 {[%clk 0:01:57]}  Qe5 {[%clk 0:01:28]} 20. Bb1 {[%clk 0:01:56]}  Rad8 {[%clk 0:01:28]} 21. Nc5 {[%clk 0:01:54]}  Bc8 {[%clk 0:01:26]} 22. Qd4 {[%clk 0:01:54]}  Qg5 {[%clk 0:01:19]} 23. Kh2 {[%clk 0:01:23]}  cxb3 {[%clk 0:01:19]} 24. axb3 {[%clk 0:01:23]}  Ne4 {[%clk 0:01:20]} 25. b4 {[%clk 0:01:08]}  Qe7 {[%clk 0:01:20]} 26. Kg1 {[%clk 0:00:57]}  Rd6 {[%clk 0:01:13]} 27. Rfd1 {[%clk 0:00:42]}  Ng5 {[%clk 0:01:08]} 28. h4 {[%clk 0:00:38]}  Ne6 {[%clk 0:01:09]} 29. Nxe6 {[%clk 0:00:38]}  Bxe6 {[%clk 0:01:02]} 30. Bd3 {[%clk 0:00:34]}  Rb8 {[%clk 0:00:57]} 31. Qc5 {[%clk 0:00:29]}  Qd8 {[%clk 0:00:55]} 32. g3 {[%clk 0:00:23]}  Rdb6 {[%clk 0:00:55]} 33. Ra1 {[%clk 0:00:21]}  Rxb4 {[%clk 0:00:51]} 34. Rxa6 {[%clk 0:00:19]}  Rb2 {[%clk 0:00:46]} 35. Qd6 {[%clk 0:00:17]}  Qf6 {[%clk 0:00:44]} 36. Qf4 {[%clk 0:00:14]}  Qxf4 {[%clk 0:00:44]} 37. gxf4 {[%clk 0:00:13]}  Bg4 {[%clk 0:00:43]} 38. Rc1 {[%clk 0:00:12]}  Rd2 {[%clk 0:00:40]} 39. Ra3 {[%clk 0:00:12]}  g6 {[%clk 0:00:40]} 40. Kg2 {[%clk 0:00:12]}  Rbb2 {[%clk 0:00:40]} 41. Kg3 {[%clk 0:00:13]}  Be6 {[%clk 0:00:38]} 42. Rf1 {[%clk 0:00:12]}  h5 {[%clk 0:00:38]} 43. Bb1 {[%clk 0:00:08]}  d4 {[%clk 0:00:37]} 44. exd4 {[%clk 0:00:08]}  Rxd4 {[%clk 0:00:37]} 45. Rf3 {[%clk 0:00:03]}  Bd5 {[%clk 0:00:35]} 46. Re3 {[%clk 0:00:04]}  Rbb4 {[%clk 0:00:35]} 47. Rd3 {[%clk 0:00:02]}  Rxd3+ {[%clk 0:00:34]} 48. Bxd3 {[%clk 0:00:02]}  Rb3 {[%clk 0:00:35]} 49. Rd1 {[%clk 0:00:02]}  Bc4 {[%clk 0:00:36]} 50. f3 {[%clk 0:00:02]}  Bxd3 {[%clk 0:00:36]} 51. Kf2 {[%clk 0:00:02]}  Bf5 {[%clk 0:00:36]} 52. Rd6 {[%clk 0:00:02]}  Kf8 {[%clk 0:00:35]} 53. Ra6 {[%clk 0:00:03]}  Be6 {[%clk 0:00:35]} 54. Ra5 {[%clk 0:00:04]}  Ke7 {[%clk 0:00:36]} 55. Rc5 {[%clk 0:00:05]}  Kd6 {[%clk 0:00:36]} 56. Rg5 {[%clk 0:00:05]}  Rd3 {[%clk 0:00:35]} 57. Ke2 {[%clk 0:00:05]}  Rd4 {[%clk 0:00:35]} 58. Ke3 {[%clk 0:00:06]}  Rd1 {[%clk 0:00:36]} 59. Ra5 {[%clk 0:00:06]}  Rh1 {[%clk 0:00:36]} 60. Ra6+ {[%clk 0:00:06]}  Ke7 {[%clk 0:00:37]} 61. Kf2 {[%clk 0:00:05]}  Rxh4 {[%clk 0:00:36]} 62. Kg3 {[%clk 0:00:06]}  Rh1 {[%clk 0:00:37]} 63. Kg2 {[%clk 0:00:07]}  Rb1 {[%clk 0:00:37]} 64. Ra5 {[%clk 0:00:07]}  h4 {[%clk 0:00:37]} 65. Ra2 {[%clk 0:00:06]}  Bxa2 {[%clk 0:00:37]} 0-1

[Event "December 12 Early 2023"]
[Site "https://www.chess.com"]
[Date "2023.12.12"]
[Round "11"]
[White "Andreikin, Dmitry"]
[Black "Duda, Jan-Krzysztof"]
[Result "1-0"]
[Board "3"]
[TimeControl "180+1"]
[WhiteFideId "4158814"]
[BlackFideId "1170546"]
[WhiteElo "3099"]
[BlackElo "3067"]
[WhiteTeam "FID"]
[BlackTeam "POL"]
[WhiteClock "0:00:24"]
[BlackClock "0:00:01"]

1. d4 {[%clk 0:03:00]}  Nf6 {[%clk 0:02:58]} 2. c4 {[%clk 0:03:00]}  g6 {[%clk 0:02:58]} 3. Nc3 {[%clk 0:02:58]}  d5 {[%clk 0:02:59]} 4. cxd5 {[%clk 0:02:57]}  Nxd5 {[%clk 0:03:00]} 5. e4 {[%clk 0:02:58]}  Nxc3 {[%clk 0:03:00]} 6. bxc3 {[%clk 0:02:58]}  Bg7 {[%clk 0:03:01]} 7. Be3 {[%clk 0:02:56]}  c5 {[%clk 0:03:01]} 8. Qd2 {[%clk 0:02:56]}  Qa5 {[%clk 0:02:57]} 9. Nf3 {[%clk 0:02:52]}  O-O {[%clk 0:02:52]} 10. Rb1 {[%clk 0:02:52]}  b6 {[%clk 0:02:43]} 11. h4 {[%clk 0:02:34]}  Rd8 {[%clk 0:01:56]} 12. Rb5 {[%clk 0:02:28]}  Qa4 {[%clk 0:01:52]} 13. h5 {[%clk 0:02:09]}  cxd4 {[%clk 0:01:45]} 14. cxd4 {[%clk 0:02:07]}  Nc6 {[%clk 0:01:46]} 15. hxg6 {[%clk 0:02:07]}  hxg6 {[%clk 0:01:47]} 16. Rb3 {[%clk 0:01:32]}  Bg4 {[%clk 0:01:28]} 17. Bb5 {[%clk 0:01:28]}  Nxd4 {[%clk 0:00:36]} 18. Bxa4 {[%clk 0:01:07]}  Nxf3+ {[%clk 0:00:34]} 19. gxf3 {[%clk 0:01:07]}  Bxf3 {[%clk 0:00:35]} 20. Rd3 {[%clk 0:00:55]}  Rxd3 {[%clk 0:00:32]} 21. Qxd3 {[%clk 0:00:56]}  Bxh1 {[%clk 0:00:33]} 22. Bc6 {[%clk 0:00:55]}  Rf8 {[%clk 0:00:16]} 23. Qd7 {[%clk 0:00:55]}  e6 {[%clk 0:00:12]} 24. Qxa7 {[%clk 0:00:54]}  Bf3 {[%clk 0:00:10]} 25. Qxb6 {[%clk 0:00:50]}  Bf6 {[%clk 0:00:10]} 26. e5 {[%clk 0:00:49]}  Bd8 {[%clk 0:00:06]} 27. Qb7 {[%clk 0:00:48]}  Ba5+ {[%clk 0:00:03]} 28. Kf1 {[%clk 0:00:48]}  Bg4 {[%clk 0:00:02]} 29. Qb5 {[%clk 0:00:43]}  Bc3 {[%clk 0:00:01]} 30. Qc5 {[%clk 0:00:42]}  Bb2 {[%clk 0:00:01]} 31. Bd4 {[%clk 0:00:40]}  Bxd4 {[%clk 0:00:01]} 32. Qxd4 {[%clk 0:00:41]}  Bh3+ {[%clk 0:00:01]} 33. Ke1 {[%clk 0:00:40]}  Rb8 {[%clk 0:00:02]} 34. a4 {[%clk 0:00:38]}  Rb1+ {[%clk 0:00:02]} 35. Kd2 {[%clk 0:00:38]}  Bf1 {[%clk 0:00:02]} 36. a5 {[%clk 0:00:36]}  Ba6 {[%clk 0:00:01]} 37. Qd8+ {[%clk 0:00:36]}  Kg7 {[%clk 0:00:01]} 38. Qf6+ {[%clk 0:00:36]}  Kg8 {[%clk 0:00:01]} 39. Be8 {[%clk 0:00:36]}  Rb7 {[%clk 0:00:02]} 40. Qd8 {[%clk 0:00:35]}  Kg7 {[%clk 0:00:02]} 41. Qa8 {[%clk 0:00:35]}  Rb2+ {[%clk 0:00:02]} 42. Kc3 {[%clk 0:00:35]}  Bb7 {[%clk 0:00:02]} 43. Qb8 {[%clk 0:00:29]}  Rb1 {[%clk 0:00:02]} 44. a6 {[%clk 0:00:28]}  Be4 {[%clk 0:00:02]} 45. Qxb1 {[%clk 0:00:26]}  Bxb1 {[%clk 0:00:03]} 46. Bc6 {[%clk 0:00:26]}  Be4 {[%clk 0:00:01]} 47. Bxe4 {[%clk 0:00:24]} 1-0

[Event "December 12 Early 2023"]
[Site "https://www.chess.com"]
[Date "2023.12.12"]
[Round "11"]
[White "Vokhidov, Shamsiddin"]
[Black "Materia, Marco"]
[Result "0-1"]
[Board "6"]
[TimeControl "180+1"]
[WhiteFideId "14204223"]
[BlackFideId "45150451"]
[WhiteElo "3018"]
[BlackElo "2849"]
[WhiteTeam "UZB"]
[BlackTeam "FRA"]
[WhiteClock "0:01:53"]
[BlackClock "0:01:43"]

1. e4 {[%clk 0:03:00]}  c5 {[%clk 0:03:00]} 2. Nf3 {[%clk 0:03:01]}  e6 {[%clk 0:03:00]} 3. d4 {[%clk 0:03:00]}  cxd4 {[%clk 0:03:01]} 4. Nxd4 {[%clk 0:03:01]}  Nc6 {[%clk 0:03:01]} 5. Nc3 {[%clk 0:03:01]}  Qc7 {[%clk 0:03:02]} 6. Be3 {[%clk 0:03:01]}  a6 {[%clk 0:03:02]} 7. a3 {[%clk 0:03:01]}  Nf6 {[%clk 0:02:53]} 8. f4 {[%clk 0:03:00]}  d5 {[%clk 0:02:39]} 9. e5 {[%clk 0:03:00]}  Nd7 {[%clk 0:02:36]} 10. Qd2 {[%clk 0:02:51]}  Bc5 {[%clk 0:02:26]} 11. Be2 {[%clk 0:02:44]}  b5 {[%clk 0:02:20]} 12. O-O {[%clk 0:02:37]}  Bb7 {[%clk 0:02:14]} 13. Kh1 {[%clk 0:02:36]}  O-O {[%clk 0:02:12]} 14. Rad1 {[%clk 0:02:32]}  Rac8 {[%clk 0:02:08]} 15. Nxc6 {[%clk 0:02:24]}  Qxc6 {[%clk 0:02:06]} 16. Bd4 {[%clk 0:02:21]}  Nb6 {[%clk 0:02:00]} 17. Bxc5 {[%clk 0:02:06]}  Qxc5 {[%clk 0:02:00]} 18. Qd4 {[%clk 0:02:04]}  Nc4 {[%clk 0:01:55]} 19. Bxc4 {[%clk 0:02:02]}  dxc4 {[%clk 0:01:43]} 20. Qxc5 {[%clk 0:01:59]}  Rxc5 {[%clk 0:01:44]} 21. Rd7 {[%clk 0:01:58]}  Bc6 {[%clk 0:01:44]} 22. Rc7 {[%clk 0:01:53]}  Bxg2+ {[%clk 0:01:43]} 0-1

[Event "December 12 Early 2023"]
[Site "https://www.chess.com"]
[Date "2023.12.12"]
[Round "11"]
[White "Paravyan, David"]
[Black "Drygalov, Sergey"]
[Result "1-0"]
[Board "7"]
[TimeControl "180+1"]
[WhiteFideId "4194985"]
[BlackFideId "24171743"]
[WhiteElo "3022"]
[BlackElo "3010"]
[WhiteTeam "FID"]
[BlackTeam "RUS"]
[WhiteClock "0:00:13"]
[BlackClock "0:00:08"]

1. e4 {[%clk 0:03:00]}  c5 {[%clk 0:03:00]} 2. Nf3 {[%clk 0:03:01]}  d6 {[%clk 0:03:00]} 3. d4 {[%clk 0:03:01]}  cxd4 {[%clk 0:03:01]} 4. Nxd4 {[%clk 0:03:02]}  Nf6 {[%clk 0:03:02]} 5. Nc3 {[%clk 0:03:02]}  a6 {[%clk 0:03:02]} 6. f3 {[%clk 0:03:01]}  e5 {[%clk 0:03:02]} 7. Nb3 {[%clk 0:03:00]}  Be6 {[%clk 0:03:03]} 8. Be3 {[%clk 0:03:01]}  Be7 {[%clk 0:03:03]} 9. Qd2 {[%clk 0:03:01]}  O-O {[%clk 0:03:03]} 10. O-O-O {[%clk 0:03:00]}  Nbd7 {[%clk 0:03:04]} 11. g4 {[%clk 0:03:00]}  b5 {[%clk 0:03:04]} 12. g5 {[%clk 0:03:01]}  Nh5 {[%clk 0:03:05]} 13. Nd5 {[%clk 0:03:00]}  Bxd5 {[%clk 0:03:05]} 14. exd5 {[%clk 0:03:01]}  f6 {[%clk 0:03:05]} 15. gxf6 {[%clk 0:03:00]}  Bxf6 {[%clk 0:03:06]} 16. Na5 {[%clk 0:02:59]}  Nf4 {[%clk 0:03:06]} 17. Qb4 {[%clk 0:02:59]}  Qc7 {[%clk 0:02:56]} 18. Nc6 {[%clk 0:02:51]}  Nb8 {[%clk 0:02:44]} 19. Bd3 {[%clk 0:02:34]}  Nxc6 {[%clk 0:02:13]} 20. dxc6 {[%clk 0:02:30]}  d5 {[%clk 0:02:10]} 21. Bxf4 {[%clk 0:02:10]}  exf4 {[%clk 0:02:10]} 22. Qc5 {[%clk 0:02:10]}  Rad8 {[%clk 0:01:54]} 23. Rhe1 {[%clk 0:02:05]}  Rd6 {[%clk 0:01:53]} 24. Bf5 {[%clk 0:01:59]}  Qxc6 {[%clk 0:01:37]} 25. Qxc6 {[%clk 0:01:58]}  Rxc6 {[%clk 0:01:38]} 26. Be6+ {[%clk 0:01:57]}  Kh8 {[%clk 0:01:37]} 27. Bxd5 {[%clk 0:01:58]}  Rc7 {[%clk 0:01:34]} 28. Re6 {[%clk 0:01:56]}  Rd7 {[%clk 0:01:17]} 29. Rd3 {[%clk 0:01:52]}  a5 {[%clk 0:00:49]} 30. a3 {[%clk 0:01:48]}  g5 {[%clk 0:00:46]} 31. Rb6 {[%clk 0:01:24]}  Re7 {[%clk 0:00:21]} 32. c3 {[%clk 0:00:55]}  Re2 {[%clk 0:00:17]} 33. Rd2 {[%clk 0:00:54]}  Re1+ {[%clk 0:00:15]} 34. Kc2 {[%clk 0:00:53]}  Re5 {[%clk 0:00:10]} 35. h3 {[%clk 0:00:46]}  h5 {[%clk 0:00:10]} 36. Rxb5 {[%clk 0:00:39]}  Rd8 {[%clk 0:00:11]} 37. Rxa5 {[%clk 0:00:32]}  g4 {[%clk 0:00:09]} 38. hxg4 {[%clk 0:00:33]}  hxg4 {[%clk 0:00:09]} 39. Rh2+ {[%clk 0:00:33]}  Kg7 {[%clk 0:00:09]} 40. Ra7+ {[%clk 0:00:34]}  Kg6 {[%clk 0:00:09]} 41. Bf7+ {[%clk 0:00:33]}  Kf5 {[%clk 0:00:09]} 42. fxg4+ {[%clk 0:00:15]}  Kxg4 {[%clk 0:00:10]} 43. Ra6 {[%clk 0:00:14]}  Bg5 {[%clk 0:00:10]} 44. Bh5+ {[%clk 0:00:11]}  Kg3 {[%clk 0:00:11]} 45. Re2 {[%clk 0:00:06]}  Rxe2+ {[%clk 0:00:07]} 46. Bxe2 {[%clk 0:00:07]}  f3 {[%clk 0:00:08]} 47. Bc4 {[%clk 0:00:07]}  f2 {[%clk 0:00:07]} 48. Rg6 {[%clk 0:00:08]}  Kf4 {[%clk 0:00:07]} 49. Rg7 {[%clk 0:00:07]}  Bf6 {[%clk 0:00:07]} 50. Rf7 {[%clk 0:00:07]}  Ke5 {[%clk 0:00:07]} 51. a4 {[%clk 0:00:08]}  Rc8 {[%clk 0:00:07]} 52. Bf1 {[%clk 0:00:07]}  Rg8 {[%clk 0:00:05]} 53. Rd7 {[%clk 0:00:07]}  Rg1 {[%clk 0:00:05]} 54. Rd1 {[%clk 0:00:08]}  Be7 {[%clk 0:00:05]} 55. a5 {[%clk 0:00:08]}  Bc5 {[%clk 0:00:04]} 56. b4 {[%clk 0:00:09]}  Ba7 {[%clk 0:00:05]} 57. b5 {[%clk 0:00:09]}  Bc5 {[%clk 0:00:05]} 58. b6 {[%clk 0:00:09]}  Rg7 {[%clk 0:00:05]} 59. Rb1 {[%clk 0:00:08]}  Kd6 {[%clk 0:00:02]} 60. b7 {[%clk 0:00:08]}  Ba7 {[%clk 0:00:01]} 61. b8=Q+ {[%clk 0:00:09]}  Bxb8 {[%clk 0:00:02]} 62. Rxb8 {[%clk 0:00:09]}  Rg5 {[%clk 0:00:02]} 63. a6 {[%clk 0:00:09]}  Ra5 {[%clk 0:00:02]} 64. Rb1 {[%clk 0:00:09]}  Ra2+ {[%clk 0:00:03]} 65. Kd3 {[%clk 0:00:09]}  Rxa6 {[%clk 0:00:03]} 66. Ke3 {[%clk 0:00:10]}  Ra2 {[%clk 0:00:03]} 67. Rc1 {[%clk 0:00:09]}  Kc5 {[%clk 0:00:04]} 68. Be2 {[%clk 0:00:09]}  f1=Q {[%clk 0:00:02]} 69. Bxf1 {[%clk 0:00:09]}  Rb2 {[%clk 0:00:02]} 70. Bd3 {[%clk 0:00:10]}  Rh2 {[%clk 0:00:03]} 71. Rf1 {[%clk 0:00:10]}  Rh3+ {[%clk 0:00:03]} 72. Kd2 {[%clk 0:00:10]}  Rh2+ {[%clk 0:00:03]} 73. Be2 {[%clk 0:00:11]}  Rg2 {[%clk 0:00:03]} 74. Rf5+ {[%clk 0:00:12]}  Kd6 {[%clk 0:00:03]} 75. Rf4 {[%clk 0:00:12]}  Rg3 {[%clk 0:00:03]} 76. Kc2 {[%clk 0:00:12]}  Kc5 {[%clk 0:00:04]} 77. Rd4 {[%clk 0:00:12]}  Re3 {[%clk 0:00:05]} 78. Bd3 {[%clk 0:00:12]}  Rg3 {[%clk 0:00:05]} 79. Rc4+ {[%clk 0:00:12]}  Kd5 {[%clk 0:00:05]} 80. Rh4 {[%clk 0:00:13]}  Kc5 {[%clk 0:00:05]} 81. Rh5+ {[%clk 0:00:14]}  Kb6 {[%clk 0:00:06]} 82. Be4 {[%clk 0:00:14]}  Re3 {[%clk 0:00:07]} 83. Re5 {[%clk 0:00:14]}  Kc7 {[%clk 0:00:06]} 84. Kd2 {[%clk 0:00:15]}  Rg3 {[%clk 0:00:06]} 85. Bd3 {[%clk 0:00:15]}  Kd6 {[%clk 0:00:06]} 86. Ra5 {[%clk 0:00:14]}  Kc6 {[%clk 0:00:06]} 87. c4 {[%clk 0:00:14]}  Kb6 {[%clk 0:00:07]} 88. Rh5 {[%clk 0:00:13]}  Kc6 {[%clk 0:00:08]} 89. Kc3 {[%clk 0:00:14]}  Re3 {[%clk 0:00:08]} 90. Kd4 {[%clk 0:00:14]}  Rg3 {[%clk 0:00:08]} 91. Be4+ {[%clk 0:00:15]}  Kb6 {[%clk 0:00:09]} 92. c5+ {[%clk 0:00:12]}  Kb5 {[%clk 0:00:09]} 93. Bd3+ {[%clk 0:00:12]}  Kc6 {[%clk 0:00:09]} 94. Rh6+ {[%clk 0:00:12]}  Kc7 {[%clk 0:00:10]} 95. Be4 {[%clk 0:00:12]}  Ra3 {[%clk 0:00:10]} 96. Rh7+ {[%clk 0:00:12]}  Kd8 {[%clk 0:00:10]} 97. Ke5 {[%clk 0:00:13]}  Ra6 {[%clk 0:00:08]} 98. c6 {[%clk 0:00:13]} 1-0